[Event "Live Chess"]
[Site "Chess.com"]
[Date "2024.06.02"]
[Round "-"]
[White "PureDashingOctopus"]
[Black "NeilDruggan73"]
[Result "1-0"]
[WhiteElo "2276"]
[BlackElo "1707"]
[TimeControl "300"]
[EndTime "4:44:56 PDT"]
[Termination "PureDashingOctopus won by resignation"]

1. e4 {[%clk 0:04:56.8]} 1... d6 {[%clk 0:04:58.3]} 2. d4 {[%clk 0:04:55.3]}
2... Nf6 {[%clk 0:04:56.5]} 3. Nc3 {[%clk 0:04:54.4]} 3... g6 {[%clk 0:04:54.7]}
4. f3 {[%clk 0:04:53.8]} 4... Bg7 {[%clk 0:04:53.6]} 5. Be3 {[%clk 0:04:53.4]}
5... c6 {[%clk 0:04:49.9]} 6. Qd2 {[%clk 0:04:51.7]} 6... b5 {[%clk 0:04:44.5]}
7. O-O-O {[%clk 0:04:50.6]} 7... Qa5 {[%clk 0:04:41.9]} 8. Kb1 {[%clk
0:04:49.3]} 8... Nbd7 {[%clk 0:04:34.1]} 9. g4 {[%clk 0:04:44.4]} 9... Nb6
{[%clk 0:04:32.2]} 10. h4 {[%clk 0:04:41.4]} 10... h5 {[%clk 0:04:29]} 11. g5
{[%clk 0:04:38.7]} 11... Nfd7 {[%clk 0:04:23.9]} 12. f4 {[%clk 0:04:35.7]} 12...
Bb7 {[%clk 0:04:17.3]} 13. Nf3 {[%clk 0:04:16.1]} 13... Nc4 {[%clk 0:04:14.6]}
14. Bxc4 {[%clk 0:04:13.5]} 14... bxc4 {[%clk 0:04:13.4]} 15. f5 {[%clk
0:04:08.1]} 15... O-O-O {[%clk 0:04:06.9]} 16. Nd5 {[%clk 0:03:59]} 16... Qxd2
{[%clk 0:04:02.7]} 17. Nxe7+ {[%clk 0:03:58.1]} 17... Kb8 {[%clk 0:03:59.1]} 18.
Rxd2 {[%clk 0:03:57.4]} 18... Rhe8 {[%clk 0:03:36.4]} 19. f6 {[%clk 0:03:54.1]}
19... Nxf6 {[%clk 0:03:32]} 20. gxf6 {[%clk 0:03:53.1]} 20... Bxf6 {[%clk
0:03:30.9]} 21. Nxg6 {[%clk 0:03:24.6]} 21... fxg6 {[%clk 0:03:28.3]} 22. Bg5
{[%clk 0:03:24]} 22... Bxg5 {[%clk 0:03:16]} 23. Nxg5 {[%clk 0:03:23.9]} 23...
c5 {[%clk 0:03:14.1]} 24. d5 {[%clk 0:03:19.7]} 24... Bc8 {[%clk 0:03:02]} 25.
Rf1 {[%clk 0:03:09.8]} 25... Rf8 {[%clk 0:02:35.7]} 26. Rdf2 {[%clk 0:03:04.8]}
26... Rxf2 {[%clk 0:02:29.4]} 27. Rxf2 {[%clk 0:03:04.7]} 27... Rg8 {[%clk
0:02:10.1]} 28. Rf6 {[%clk 0:03:02.2]} 28... Kc7 {[%clk 0:02:05.2]} 29. Rf7+
{[%clk 0:02:58.3]} 29... Kb6 {[%clk 0:02:03.5]} 30. a4 {[%clk 0:02:42.4]} 30...
a5 {[%clk 0:01:58.9]} 31. Rf6 {[%clk 0:02:35.8]} 31... Kc7 {[%clk 0:01:50.8]}
32. Nf7 {[%clk 0:02:07.9]} 32... Rf8 {[%clk 0:01:41.6]} 33. Nxd6 {[%clk
0:02:00.4]} 33... Rxf6 {[%clk 0:01:26.2]} 34. Ne8+ {[%clk 0:01:59.5]} 34... Kd7
{[%clk 0:01:20.5]} 35. Nxf6+ {[%clk 0:01:59.4]} 35... Kd6 {[%clk 0:01:19.6]} 36.
c3 {[%clk 0:01:42.9]} 36... Ke7 {[%clk 0:01:09.5]} 37. e5 {[%clk 0:01:38.1]}
37... Bg4 {[%clk 0:00:58.4]} 38. Kc2 {[%clk 0:01:31.1]} 38... Bf3 {[%clk
0:00:54.9]} 39. Kd2 {[%clk 0:01:29.5]} 39... Bg4 {[%clk 0:00:48.9]} 40. Nxg4
{[%clk 0:01:25.6]} 40... hxg4 {[%clk 0:00:46.8]} 41. Ke3 {[%clk 0:01:25.5]}
41... g3 {[%clk 0:00:36]} 42. Kf3 {[%clk 0:01:25.4]} 42... g2 {[%clk 0:00:34.1]}
43. Kxg2 {[%clk 0:01:25]} 43... g5 {[%clk 0:00:33.2]} 44. hxg5 {[%clk
0:01:22.1]} 44... Kf7 {[%clk 0:00:31.6]} 45. Kg3 {[%clk 0:01:22]} 45... Kg6
{[%clk 0:00:30.8]} 46. d6 {[%clk 0:01:20.9]} 46... Kf5 {[%clk 0:00:29.4]} 47. d7
{[%clk 0:01:18.9]} 47... Kxe5 {[%clk 0:00:28]} 48. d8=Q {[%clk 0:01:17.8]} 48...
Ke4 {[%clk 0:00:27.9]} 49. g6 {[%clk 0:01:15.8]} 49... Ke3 {[%clk 0:00:27.6]}
50. g7 {[%clk 0:01:15.3]} 1-0

[Event "Live Chess"]
[Site "Chess.com"]
[Date "2024.06.02"]
[Round "-"]
[White "Duke_of_Bebington"]
[Black "TheSmoulderingMaster"]
[Result "0-1"]
[WhiteElo "1631"]
[BlackElo "1779"]
[TimeControl "300"]
[EndTime "4:45:36 PDT"]
[Termination "TheSmoulderingMaster won by checkmate"]

1. e4 {[%clk 0:04:57.8]} 1... c5 {[%clk 0:04:57.1]} 2. Nf3 {[%clk 0:04:53.5]}
2... d6 {[%clk 0:04:55.8]} 3. c3 {[%clk 0:04:51.3]} 3... Nc6 {[%clk 0:04:54.1]}
4. d4 {[%clk 0:04:49.8]} 4... cxd4 {[%clk 0:04:52.9]} 5. cxd4 {[%clk 0:04:48.8]}
5... Nf6 {[%clk 0:04:51.8]} 6. d5 {[%clk 0:04:46.6]} 6... Nb8 {[%clk 0:04:49.9]}
7. Nc3 {[%clk 0:04:45.6]} 7... g6 {[%clk 0:04:47.7]} 8. Bb5+ {[%clk 0:04:25.4]}
8... Nbd7 {[%clk 0:04:45.3]} 9. O-O {[%clk 0:04:23.2]} 9... a6 {[%clk
0:04:42.1]} 10. Ba4 {[%clk 0:04:22]} 10... b5 {[%clk 0:04:40.4]} 11. Bc2 {[%clk
0:04:21]} 11... Bg7 {[%clk 0:04:39]} 12. a3 {[%clk 0:04:17.5]} 12... O-O {[%clk
0:04:34.4]} 13. Be3 {[%clk 0:04:14.8]} 13... Bb7 {[%clk 0:04:32.1]} 14. Qd2
{[%clk 0:04:10.1]} 14... Ng4 {[%clk 0:04:30.2]} 15. Bd4 {[%clk 0:04:02.2]} 15...
Nge5 {[%clk 0:04:26.5]} 16. Nxe5 {[%clk 0:04:00.8]} 16... Nxe5 {[%clk 0:04:25]}
17. f4 {[%clk 0:03:57.1]} 17... Nc4 {[%clk 0:04:23.7]} 18. Qf2 {[%clk
0:03:53.1]} 18... Nxb2 {[%clk 0:04:21.9]} 19. Bxg7 {[%clk 0:03:47.2]} 19... Kxg7
{[%clk 0:04:20]} 20. Nxb5 {[%clk 0:03:45.5]} 20... axb5 {[%clk 0:04:13.1]} 21.
Qd4+ {[%clk 0:03:44.4]} 21... Kg8 {[%clk 0:04:10.6]} 22. Qxb2 {[%clk 0:03:43.3]}
22... Ba6 {[%clk 0:04:09]} 23. Rf3 {[%clk 0:03:32.1]} 23... Rc8 {[%clk
0:04:04.8]} 24. Bd3 {[%clk 0:03:25.7]} 24... Qb6+ {[%clk 0:04:01.6]} 25. Kh1
{[%clk 0:03:23.2]} 25... Rc7 {[%clk 0:04:00.3]} 26. e5 {[%clk 0:03:17.2]} 26...
Rfc8 {[%clk 0:03:56]} 27. f5 {[%clk 0:03:06]} 27... b4 {[%clk 0:03:49.9]} 28.
Bxa6 {[%clk 0:03:02.3]} 28... Qxa6 {[%clk 0:03:47.3]} 29. a4 {[%clk 0:02:38.2]}
29... Rc2 {[%clk 0:03:41]} 30. Qxb4 {[%clk 0:02:28.5]} 30... Rc1+ {[%clk
0:03:37]} 31. Rf1 {[%clk 0:02:26.1]} 31... R1c4 {[%clk 0:03:32.5]} 32. Qb5
{[%clk 0:02:19.2]} 32... Qxb5 {[%clk 0:03:09.9]} 33. axb5 {[%clk 0:02:19.1]}
33... Rb4 {[%clk 0:03:09.2]} 34. fxg6 {[%clk 0:02:10.5]} 34... hxg6 {[%clk
0:03:06.6]} 35. exd6 {[%clk 0:02:09.1]} 35... exd6 {[%clk 0:03:05.4]} 36. Rf6
{[%clk 0:02:04.3]} 36... Rd8 {[%clk 0:03:01.9]} 37. Raf1 {[%clk 0:02:00.6]}
37... Rd7 {[%clk 0:02:58.9]} 38. Rd1 {[%clk 0:01:46.1]} 38... Rxb5 {[%clk
0:02:57]} 39. g4 {[%clk 0:01:44.1]} 39... Kg7 {[%clk 0:02:53.5]} 40. g5 {[%clk
0:01:42.5]} 40... Rdb7 {[%clk 0:02:47.5]} 41. Rxd6 {[%clk 0:01:39.7]} 41... Rb1
{[%clk 0:02:46.2]} 42. Rxb1 {[%clk 0:01:38.8]} 42... Rxb1+ {[%clk 0:02:43.8]}
43. Kg2 {[%clk 0:01:38]} 43... Rd1 {[%clk 0:02:41.5]} 44. Rd8 {[%clk 0:01:31.3]}
44... f5 {[%clk 0:02:36.3]} 45. gxf6+ {[%clk 0:01:29.2]} 45... Kxf6 {[%clk
0:02:35.3]} 46. d6 {[%clk 0:01:28.7]} 46... Ke6 {[%clk 0:02:33.2]} 47. d7 {[%clk
0:01:27.6]} 47... Ke7 {[%clk 0:02:31.9]} 48. Rg8 {[%clk 0:01:23.1]} 48... Rxd7
{[%clk 0:02:25.2]} 49. Rg7+ {[%clk 0:01:21.5]} 49... Ke6 {[%clk 0:02:24]} 50.
Rxd7 {[%clk 0:01:20.4]} 50... Kxd7 {[%clk 0:02:22.9]} 51. Kg3 {[%clk 0:01:19.7]}
51... Ke6 {[%clk 0:02:22.3]} 52. Kg4 {[%clk 0:01:19.1]} 52... Kf6 {[%clk
0:02:21.5]} 53. h3 {[%clk 0:01:17.5]} 53... Kg7 {[%clk 0:02:20.1]} 54. Kg5
{[%clk 0:01:16.7]} 54... Kh7 {[%clk 0:02:19.3]} 55. Kf6 {[%clk 0:01:12.7]} 55...
Kh6 {[%clk 0:02:18]} 56. Ke5 {[%clk 0:01:06.3]} 56... Kh5 {[%clk 0:02:17]} 57.
Kf4 {[%clk 0:01:05.8]} 57... g5+ {[%clk 0:02:14.4]} 58. Kg3 {[%clk 0:01:04.6]}
58... Kg6 {[%clk 0:02:13.3]} 59. Kg4 {[%clk 0:01:03.5]} 59... Kh6 {[%clk
0:02:12.4]} 60. Kg3 {[%clk 0:01:01.4]} 60... Kh5 {[%clk 0:02:11.6]} 61. Kh2
{[%clk 0:00:59.8]} 61... Kh4 {[%clk 0:02:10.2]} 62. Kg2 {[%clk 0:00:59]} 62...
Kh5 {[%clk 0:02:07.6]} 63. Kg3 {[%clk 0:00:58]} 63... Kh6 {[%clk 0:02:05]} 64.
Kg4 {[%clk 0:00:57.2]} 64... Kg6 {[%clk 0:02:04.4]} 65. Kg3 {[%clk 0:00:56.5]}
65... Kf5 {[%clk 0:02:03.3]} 66. h4 {[%clk 0:00:50.4]} 66... g4 {[%clk 0:01:59]}
67. Kg2 {[%clk 0:00:49.3]} 67... Kf4 {[%clk 0:01:56.9]} 68. h5 {[%clk
0:00:47.2]} 68... Kg5 {[%clk 0:01:56]} 69. Kg3 {[%clk 0:00:46.9]} 69... Kxh5
{[%clk 0:01:55.4]} 70. Kh2 {[%clk 0:00:45.8]} 70... Kh4 {[%clk 0:01:54.3]} 71.
Kh1 {[%clk 0:00:40.6]} 71... Kh3 {[%clk 0:01:51]} 72. Kg1 {[%clk 0:00:38.7]}
72... Kg3 {[%clk 0:01:50.3]} 73. Kh1 {[%clk 0:00:37]} 73... Kf2 {[%clk
0:01:49.4]} 74. Kh2 {[%clk 0:00:36.1]} 74... g3+ {[%clk 0:01:48.7]} 75. Kh1
{[%clk 0:00:35.3]} 75... g2+ {[%clk 0:01:48.1]} 76. Kh2 {[%clk 0:00:35.2]} 76...
g1=R {[%clk 0:01:45.4]} 77. Kh3 {[%clk 0:00:35.1]} 77... Rg8 {[%clk 0:01:42.7]}
78. Kh4 {[%clk 0:00:35]} 78... Kf3 {[%clk 0:01:41.7]} 79. Kh5 {[%clk 0:00:34.9]}
79... Kf4 {[%clk 0:01:41.1]} 80. Kh6 {[%clk 0:00:34.8]} 80... Kf5 {[%clk
0:01:40.4]} 81. Kh7 {[%clk 0:00:34.7]} 81... Rg1 {[%clk 0:01:39]} 82. Kh6 {[%clk
0:00:33.6]} 82... Rg2 {[%clk 0:01:37.2]} 83. Kh7 {[%clk 0:00:32.7]} 83... Kf6
{[%clk 0:01:36.6]} 84. Kh8 {[%clk 0:00:31.6]} 84... Kf7 {[%clk 0:01:35.9]} 85.
Kh7 {[%clk 0:00:30.4]} 85... Rh2# {[%clk 0:01:35.3]} 0-1

[Event "Live Chess"]
[Site "Chess.com"]
[Date "2024.06.02"]
[Round "-"]
[White "Tatarinov_Maxim"]
[Black "f4nomore"]
[Result "1-0"]
[WhiteElo "2286"]
[BlackElo "1277"]
[TimeControl "300"]
[EndTime "4:45:54 PDT"]
[Termination "Tatarinov_Maxim won by resignation"]

1. Nf3 {[%clk 0:04:56.9]} 1... g6 {[%clk 0:04:59.6]} 2. g3 {[%clk 0:04:54.4]}
2... Bg7 {[%clk 0:04:59.5]} 3. Bg2 {[%clk 0:04:53]} 3... d6 {[%clk 0:04:58.8]}
4. O-O {[%clk 0:04:52.6]} 4... Nf6 {[%clk 0:04:56.3]} 5. c4 {[%clk 0:04:51.5]}
5... O-O {[%clk 0:04:54.8]} 6. d4 {[%clk 0:04:51.1]} 6... Nbd7 {[%clk 0:04:53]}
7. Nc3 {[%clk 0:04:49.8]} 7... c5 {[%clk 0:04:51.8]} 8. d5 {[%clk 0:04:48]} 8...
Rb8 {[%clk 0:04:49.7]} 9. a4 {[%clk 0:04:41.5]} 9... a6 {[%clk 0:04:44.3]} 10.
a5 {[%clk 0:04:37.2]} 10... b6 {[%clk 0:04:38.4]} 11. axb6 {[%clk 0:04:11.9]}
11... Qxb6 {[%clk 0:04:35.4]} 12. Nd2 {[%clk 0:04:00.8]} 12... Ng4 {[%clk
0:04:25.7]} 13. h3 {[%clk 0:03:48.4]} 13... Nge5 {[%clk 0:04:22]} 14. f4 {[%clk
0:03:40.7]} 14... Qd8 {[%clk 0:03:50.4]} 15. fxe5 {[%clk 0:03:39]} 15... Nxe5
{[%clk 0:03:47]} 16. Kh2 {[%clk 0:03:36.2]} 16... e6 {[%clk 0:03:36.9]} 17. Qc2
{[%clk 0:03:22.1]} 17... exd5 {[%clk 0:03:25.3]} 18. cxd5 {[%clk 0:03:16.7]}
18... f5 {[%clk 0:03:10.7]} 19. Nf3 {[%clk 0:03:12.8]} 19... Nc4 {[%clk
0:03:05.1]} 20. b3 {[%clk 0:03:01.8]} 20... Ne5 {[%clk 0:02:49.7]} 21. Bf4
{[%clk 0:02:46]} 21... Nxf3+ {[%clk 0:02:43.3]} 22. Bxf3 {[%clk 0:02:44.7]}
22... g5 {[%clk 0:02:39.3]} 23. Bd2 {[%clk 0:02:42.3]} 23... Qf6 {[%clk
0:02:20.1]} 24. Ra4 {[%clk 0:02:32.1]} 24... Rb4 {[%clk 0:02:10.1]} 25. Rxb4
{[%clk 0:02:17.9]} 25... cxb4 {[%clk 0:02:07.6]} 26. Nd1 {[%clk 0:02:15.7]}
26... a5 {[%clk 0:02:04.8]} 27. Bg2 {[%clk 0:02:08.3]} 27... Qg6 {[%clk
0:01:57.9]} 28. Ne3 {[%clk 0:01:56.9]} 28... g4 {[%clk 0:01:52.9]} 29. Nc4
{[%clk 0:01:49.1]} 29... f4 {[%clk 0:01:43.6]} 30. Qxg6 {[%clk 0:01:46.8]} 30...
fxg3+ {[%clk 0:01:41.6]} 31. Kxg3 {[%clk 0:01:46.7]} 31... hxg6 {[%clk 0:01:36]}
32. Rxf8+ {[%clk 0:01:45.3]} 32... Kxf8 {[%clk 0:01:33.1]} 33. hxg4 {[%clk
0:01:44]} 33... Be5+ {[%clk 0:01:29.5]} 34. Bf4 {[%clk 0:01:41.9]} 34... Bxf4+
{[%clk 0:01:23.6]} 35. Kxf4 {[%clk 0:01:41.8]} 35... Ke7 {[%clk 0:01:22.2]} 36.
Be4 {[%clk 0:01:32.4]} 36... Bb7 {[%clk 0:01:19.4]} 37. Nxa5 {[%clk 0:01:30.7]}
37... Ba8 {[%clk 0:01:16.3]} 38. g5 {[%clk 0:01:26.3]} 38... Kd7 {[%clk
0:01:04.4]} 39. Ke3 {[%clk 0:01:25.1]} 39... Ke7 {[%clk 0:00:58.7]} 40. Kd4
{[%clk 0:01:25]} 40... Kd7 {[%clk 0:00:57.2]} 41. Bxg6 {[%clk 0:01:23.4]} 41...
Ke7 {[%clk 0:00:53.9]} 42. Be4 {[%clk 0:01:23.3]} 42... Kf7 {[%clk 0:00:52.4]}
43. Nc6 {[%clk 0:01:21.4]} 43... Kg7 {[%clk 0:00:49.6]} 44. Nxb4 {[%clk
0:01:20.3]} 1-0

[Event "Live Chess"]
[Site "Chess.com"]
[Date "2024.06.02"]
[Round "-"]
[White "slava_ukr"]
[Black "Pandreq"]
[Result "1-0"]
[WhiteElo "2384"]
[BlackElo "1234"]
[TimeControl "300"]
[EndTime "4:46:06 PDT"]
[Termination "slava_ukr won by resignation"]

1. e4 {[%clk 0:04:57.3]} 1... Nf6 {[%clk 0:04:58.7]} 2. Nc3 {[%clk 0:04:56.2]}
2... Nc6 {[%clk 0:04:57.4]} 3. Nf3 {[%clk 0:04:52.1]} 3... d6 {[%clk 0:04:55.7]}
4. d4 {[%clk 0:04:49.9]} 4... e5 {[%clk 0:04:54.6]} 5. dxe5 {[%clk 0:04:48.5]}
5... Nxe5 {[%clk 0:04:53.6]} 6. Nxe5 {[%clk 0:04:47.3]} 6... dxe5 {[%clk
0:04:51.7]} 7. Qxd8+ {[%clk 0:04:46.2]} 7... Kxd8 {[%clk 0:04:51.4]} 8. f4
{[%clk 0:04:41.5]} 8... Bd6 {[%clk 0:04:45.6]} 9. fxe5 {[%clk 0:04:37.3]} 9...
Bxe5 {[%clk 0:04:44.4]} 10. Bg5 {[%clk 0:04:36]} 10... h6 {[%clk 0:04:34.9]} 11.
O-O-O+ {[%clk 0:04:33.6]} 11... Bd7 {[%clk 0:04:28.4]} 12. Bxf6+ {[%clk
0:04:15.7]} 12... Bxf6 {[%clk 0:04:27]} 13. Bc4 {[%clk 0:04:13.8]} 13... Bg5+
{[%clk 0:04:18.1]} 14. Kb1 {[%clk 0:04:12.5]} 14... f6 {[%clk 0:04:12.5]} 15.
Be6 {[%clk 0:04:10.3]} 15... Ke7 {[%clk 0:04:01.8]} 16. Bxd7 {[%clk 0:04:09.1]}
16... Rad8 {[%clk 0:03:59.3]} 17. Ba4 {[%clk 0:04:02.7]} 17... c6 {[%clk
0:03:56.8]} 18. Bb3 {[%clk 0:04:01.2]} 18... Rd7 {[%clk 0:03:40.5]} 19. Rxd7+
{[%clk 0:03:58.4]} 19... Kxd7 {[%clk 0:03:39.3]} 20. Rd1+ {[%clk 0:03:57]} 20...
Kc7 {[%clk 0:03:37.6]} 21. a4 {[%clk 0:03:52.7]} 21... Bf4 {[%clk 0:03:35.1]}
22. Be6 {[%clk 0:03:44.2]} 22... Rd8 {[%clk 0:03:28.5]} 23. Rxd8 {[%clk
0:03:42.7]} 23... Kxd8 {[%clk 0:03:28.1]} 24. h3 {[%clk 0:03:40.9]} 24... Be5
{[%clk 0:03:25.8]} 25. Kc1 {[%clk 0:03:36.2]} 25... b6 {[%clk 0:03:24.7]} 26.
Kd2 {[%clk 0:03:34.9]} 26... c5 {[%clk 0:03:23.4]} 27. Kd3 {[%clk 0:03:33.8]}
27... Bd4 {[%clk 0:03:20.6]} 28. b3 {[%clk 0:03:32.4]} 28... Ke7 {[%clk
0:03:18.9]} 29. Bf5 {[%clk 0:03:24.6]} 29... g5 {[%clk 0:03:13.1]} 30. Nb5
{[%clk 0:03:22.4]} 30... a6 {[%clk 0:03:11.3]} 31. Nxd4 {[%clk 0:03:21.2]} 31...
cxd4 {[%clk 0:03:10.5]} 32. Kxd4 {[%clk 0:03:20.4]} 32... Kd6 {[%clk 0:03:09.5]}
33. b4 {[%clk 0:03:18.7]} 33... h5 {[%clk 0:03:07.4]} 34. c4 {[%clk 0:03:15.8]}
34... h4 {[%clk 0:03:06.2]} 35. c5+ {[%clk 0:03:14.6]} 35... bxc5+ {[%clk
0:03:04.8]} 36. bxc5+ {[%clk 0:03:13.5]} 36... Kc6 {[%clk 0:03:03.3]} 37. Kc4
{[%clk 0:03:12.6]} 37... a5 {[%clk 0:03:01.5]} 38. Bg4 {[%clk 0:03:08.9]} 1-0

[Event "Live Chess"]
[Site "Chess.com"]
[Date "2024.06.02"]
[Round "-"]
[White "Hoogleboogle"]
[Black "Queensandpawns"]
[Result "0-1"]
[WhiteElo "1265"]
[BlackElo "2249"]
[TimeControl "300"]
[EndTime "4:46:07 PDT"]
[Termination "Queensandpawns won by checkmate"]

1. d4 {[%clk 0:04:55.7]} 1... e5 {[%clk 0:04:59.9]} 2. dxe5 {[%clk 0:04:53.4]}
2... Bc5 {[%clk 0:04:59.4]} 3. e3 {[%clk 0:04:49.9]} 3... Nc6 {[%clk 0:04:58.6]}
4. Nf3 {[%clk 0:04:45.9]} 4... d6 {[%clk 0:04:58]} 5. exd6 {[%clk 0:04:41.7]}
5... Bxd6 {[%clk 0:04:57.9]} 6. Bb5 {[%clk 0:04:35.3]} 6... Ne7 {[%clk 0:04:57]}
7. O-O {[%clk 0:04:32.8]} 7... O-O {[%clk 0:04:54.9]} 8. Bxc6 {[%clk 0:04:30.8]}
8... Nxc6 {[%clk 0:04:54.8]} 9. Nc3 {[%clk 0:04:27.1]} 9... Bg4 {[%clk
0:04:53.8]} 10. h3 {[%clk 0:04:23.9]} 10... Bh5 {[%clk 0:04:52.5]} 11. g4 {[%clk
0:04:22.6]} 11... Bg6 {[%clk 0:04:51.3]} 12. Nh4 {[%clk 0:04:15.5]} 12... Qxh4
{[%clk 0:04:50.2]} 13. Qf3 {[%clk 0:04:09]} 13... f5 {[%clk 0:04:44.8]} 14. Qd5+
{[%clk 0:04:00.3]} 14... Kh8 {[%clk 0:04:43.5]} 15. Kg2 {[%clk 0:03:48.8]} 15...
fxg4 {[%clk 0:04:42.1]} 16. Rh1 {[%clk 0:03:41.9]} 16... Qxf2# {[%clk
0:04:39.9]} 0-1

[Event "Live Chess"]
[Site "Chess.com"]
[Date "2024.06.02"]
[Round "-"]
[White "NeilDruggan73"]
[Black "kylet1990"]
[Result "1-0"]
[WhiteElo "1707"]
[BlackElo "750"]
[TimeControl "300"]
[EndTime "4:46:30 PDT"]
[Termination "NeilDruggan73 won by resignation"]

1. d4 {[%clk 0:04:57.1]} 1... c6 {[%clk 0:04:58.4]} 2. Nf3 {[%clk 0:04:56]} 2...
d5 {[%clk 0:04:56.8]} 3. Bg5 {[%clk 0:04:53.8]} 3... Bf5 {[%clk 0:04:54.4]} 4.
c3 {[%clk 0:04:48.2]} 4... e6 {[%clk 0:04:51.5]} 5. Bxd8 {[%clk 0:04:44.7]} 5...
Kxd8 {[%clk 0:04:42.9]} 6. Ne5 {[%clk 0:04:43.3]} 6... Be7 {[%clk 0:04:41.5]} 7.
Nxf7+ {[%clk 0:04:41.9]} 7... Kc7 {[%clk 0:04:40.2]} 8. Nxh8 {[%clk 0:04:40.4]}
8... Nh6 {[%clk 0:04:37.9]} 9. f3 {[%clk 0:04:35.6]} 9... e5 {[%clk 0:04:35.1]}
10. g4 {[%clk 0:04:34.1]} 10... Bxg4 {[%clk 0:04:32.5]} 11. fxg4 {[%clk
0:04:32.3]} 1-0

[Event "Live Chess"]
[Site "Chess.com"]
[Date "2024.06.02"]
[Round "-"]
[White "Dhaydon19"]
[Black "CheckThis4"]
[Result "1-0"]
[WhiteElo "2652"]
[BlackElo "2689"]
[TimeControl "300"]
[EndTime "4:46:44 PDT"]
[Termination "Dhaydon19 won by resignation"]

1. e4 {[%clk 0:04:57.6]} 1... c5 {[%clk 0:04:57.7]} 2. Nf3 {[%clk 0:04:56.3]}
2... d6 {[%clk 0:04:55.7]} 3. Bb5+ {[%clk 0:04:54.7]} 3... Nd7 {[%clk
0:04:53.2]} 4. c3 {[%clk 0:04:53.2]} 4... Nf6 {[%clk 0:04:51.7]} 5. d3 {[%clk
0:04:48.2]} 5... a6 {[%clk 0:04:47.7]} 6. Ba4 {[%clk 0:04:46.9]} 6... g6 {[%clk
0:04:46.9]} 7. O-O {[%clk 0:04:44.8]} 7... Bg7 {[%clk 0:04:46]} 8. Bc2 {[%clk
0:04:43.8]} 8... O-O {[%clk 0:04:44.7]} 9. Re1 {[%clk 0:04:43.4]} 9... e5 {[%clk
0:04:39.2]} 10. Nbd2 {[%clk 0:04:42.2]} 10... b5 {[%clk 0:04:34.2]} 11. a4
{[%clk 0:04:40.3]} 11... Bb7 {[%clk 0:04:32.9]} 12. Nf1 {[%clk 0:04:37.9]} 12...
Nh5 {[%clk 0:04:22.7]} 13. Bb3 {[%clk 0:04:31.8]} 13... Qc7 {[%clk 0:04:17.4]}
14. Ne3 {[%clk 0:04:25.1]} 14... Nf4 {[%clk 0:04:11.8]} 15. g3 {[%clk 0:04:23]}
15... Ne6 {[%clk 0:04:04.5]} 16. Bd5 {[%clk 0:04:19.3]} 16... Nb6 {[%clk
0:03:54.1]} 17. axb5 {[%clk 0:04:12]} 17... axb5 {[%clk 0:03:49.8]} 18. Rxa8
{[%clk 0:04:10.7]} 18... Bxa8 {[%clk 0:03:47.4]} 19. Bxa8 {[%clk 0:04:08.6]}
19... Rxa8 {[%clk 0:03:45]} 20. Qb3 {[%clk 0:04:04.4]} 20... Qd7 {[%clk
0:03:33.7]} 21. h4 {[%clk 0:03:57]} 21... Rc8 {[%clk 0:03:13.7]} 22. Rd1 {[%clk
0:03:53]} 22... Nc7 {[%clk 0:02:54.6]} 23. Kg2 {[%clk 0:03:48.4]} 23... Qe6
{[%clk 0:02:51.7]} 24. Qc2 {[%clk 0:03:45.9]} 24... d5 {[%clk 0:02:41.8]} 25. h5
{[%clk 0:03:34.2]} 25... d4 {[%clk 0:02:36.5]} 26. cxd4 {[%clk 0:03:22.7]} 26...
cxd4 {[%clk 0:02:32.1]} 27. Nf1 {[%clk 0:03:08.7]} 27... Ne8 {[%clk 0:02:22.1]}
28. Qe2 {[%clk 0:03:06.5]} 28... h6 {[%clk 0:02:18.1]} 29. hxg6 {[%clk
0:03:04.3]} 29... fxg6 {[%clk 0:02:18]} 30. Nh4 {[%clk 0:03:03.7]} 30... Kh7
{[%clk 0:02:14.7]} 31. Nh2 {[%clk 0:03:02.4]} 31... Bf6 {[%clk 0:02:12.5]} 32.
N2f3 {[%clk 0:02:54.8]} 32... Ng7 {[%clk 0:02:07.2]} 33. Rh1 {[%clk 0:02:53]}
33... Nd7 {[%clk 0:01:43.8]} 34. Bxh6 {[%clk 0:02:47.6]} 34... Nh5 {[%clk
0:01:35]} 35. Nxg6 {[%clk 0:02:31.4]} 35... Kxg6 {[%clk 0:01:28.6]} 36. Nxd4
{[%clk 0:02:28.7]} 36... exd4 {[%clk 0:01:14.7]} 37. Qxh5+ {[%clk 0:02:25.5]}
37... Kh7 {[%clk 0:01:14.3]} 38. Bf4+ {[%clk 0:01:54.5]} 38... Kg8 {[%clk
0:01:12.7]} 39. Qg6+ {[%clk 0:01:53.2]} 39... Kf8 {[%clk 0:01:06]} 40. Rh8+
{[%clk 0:01:49.3]} 40... Ke7 {[%clk 0:01:05.1]} 41. Rxc8 {[%clk 0:01:47.6]}
41... Nf8 {[%clk 0:00:58.5]} 42. Re8+ {[%clk 0:01:43.9]} 1-0

[Event "Live Chess"]
[Site "Chess.com"]
[Date "2024.06.02"]
[Round "-"]
[White "Velocity"]
[Black "Colm_Buckley"]
[Result "0-1"]
[WhiteElo "1708"]
[BlackElo "1873"]
[TimeControl "300"]
[EndTime "4:47:23 PDT"]
[Termination "Colm_Buckley won by checkmate"]

1. e4 {[%clk 0:04:59.5]} 1... c6 {[%clk 0:04:58.1]} 2. d4 {[%clk 0:04:58.4]}
2... d5 {[%clk 0:04:57.7]} 3. Nd2 {[%clk 0:04:58]} 3... dxe4 {[%clk 0:04:56]} 4.
Nxe4 {[%clk 0:04:57.9]} 4... Bf5 {[%clk 0:04:54.8]} 5. Ng3 {[%clk 0:04:56.9]}
5... Bg6 {[%clk 0:04:54.2]} 6. Nf3 {[%clk 0:04:56.3]} 6... Nd7 {[%clk
0:04:47.5]} 7. Be2 {[%clk 0:04:55.5]} 7... Ngf6 {[%clk 0:04:45.9]} 8. Be3 {[%clk
0:04:54.6]} 8... e6 {[%clk 0:04:44.8]} 9. c3 {[%clk 0:04:52.7]} 9... Bd6 {[%clk
0:04:42]} 10. Qd2 {[%clk 0:04:51.6]} 10... Qc7 {[%clk 0:04:34.5]} 11. O-O {[%clk
0:04:49.9]} 11... O-O {[%clk 0:04:29.9]} 12. Rfe1 {[%clk 0:04:48.1]} 12... e5
{[%clk 0:04:20.9]} 13. dxe5 {[%clk 0:04:36.5]} 13... Nxe5 {[%clk 0:04:14.5]} 14.
Bd4 {[%clk 0:04:29.5]} 14... Rad8 {[%clk 0:04:02.3]} 15. Nxe5 {[%clk 0:04:07.8]}
15... Bxe5 {[%clk 0:03:58.7]} 16. Bxe5 {[%clk 0:04:06.6]} 16... Qxe5 {[%clk
0:03:51.9]} 17. Qc1 {[%clk 0:03:52.7]} 17... Qc5 {[%clk 0:03:32.6]} 18. Bf3
{[%clk 0:03:44.7]} 18... h6 {[%clk 0:03:23.4]} 19. Qf4 {[%clk 0:03:40]} 19...
Nd5 {[%clk 0:03:14.8]} 20. Qa4 {[%clk 0:03:24.4]} 20... b5 {[%clk 0:03:11]} 21.
Qb3 {[%clk 0:03:20.9]} 21... a5 {[%clk 0:03:05.2]} 22. a4 {[%clk 0:03:16.8]}
22... Nf4 {[%clk 0:02:53.1]} 23. axb5 {[%clk 0:03:10.2]} 23... Nd3 {[%clk
0:02:46.4]} 24. Red1 {[%clk 0:02:56.7]} 24... Nxf2 {[%clk 0:02:34.8]} 25. Qa3
{[%clk 0:02:33.6]} 25... Nh3+ {[%clk 0:02:22.3]} 26. Kh1 {[%clk 0:02:29.1]}
26... Qg1+ {[%clk 0:02:19.5]} 27. Rxg1 {[%clk 0:02:27.9]} 27... Nf2# {[%clk
0:02:18.3]} 0-1